bitfinex/quotes_SOLUSD_20240530
["timestamp","ask_amount","ask_price","bid_price","bid_amount"]
[1717027200473,2.1958,168.5,168.46,2.1963]
[1717027201688,2.1959,168.5,168.45,8.9163]
[1717027201993,8.9159,168.5,168.45,2.1963]
[1717027202193,2.1959,168.5,168.45,8.9163]
[1717027202867,8.9159,168.5,168.45,2.1964]
[1717027204293,8.9159,168.5,168.42,33.6381]
[1717027204294,17.1316708,168.52,168.42,22.6539]
[1717027204593,4.3916,168.51,168.42,6.72]
[1717027204793,2.196,168.49,168.42,6.72]
[1717027205086,8.916,168.49,168.42,6.72]
[1717027205278,8.916,168.49,168.43,2.1966]
[1717027205279,2.1961,168.48,168.43,2.1966]
[1717027206486,2.1961,168.48,168.42,8.9168]
[1717027206784,17.1316708,168.51,168.48,2.196]
[1717027206981,2.1954,168.53,168.47,6.72]
[1717027207183,17.1316708,168.5,168.47,6.72]
[1717027207489,17.1316708,168.49,168.48,2.196]
[1717027207788,1.16795822,168.56,168.5,2.1957]
[1717027208091,2.1952,168.55,168.48,6.72]
[1717027208273,2.1952,168.55,168.49,6.72]
[1717027208589,8.9152,168.55,168.49,6.72]
[1717027208773,10.08305822,168.56,168.5,8.9157]
[1717027209089,3.36305822,168.56,168.51,2.1956]
[1717027209272,21.4703,168.6,168.52,6.72]
[1717027209273,6.72,168.58,168.52,6.72]
[1717027209478,2.195,168.57,168.52,6.72]
[1717027209863,2.195,168.57,168.48,27.5826]
[1717027209864,2.1954,168.54,168.48,8.916]
[1717027210087,2.1954,168.54,168.45,4.3928]
[1717027210088,8.9155,168.53,168.47,2.1961]
[1717027210293,4.3902,168.56,168.46,2.1963]
[1717027210294,6.72,168.51,168.46,2.1963]
[1717027210679,2.1961,168.48,168.4,12.7168]
[1717027210873,8.9161,168.48,168.42,2.1968]
[1717027211183,8.9161,168.48,168.43,2.1967]
[1717027211494,2.1962,168.47,168.41,2.1968]
[1717027211673,45.0,168.55,168.43,6.72]
[1717027211674,10.9782,168.52,168.43,6.72]
[1717027211990,2.1958,168.51,168.4,6.72]
[1717027212200,8.9158,168.51,168.46,2.1963]
[1717027212774,8.9158,168.51,168.45,8.9164]
[1717027213296,6.72,168.47,168.4,2.197]
[1717027213495,2.1965,168.45,168.41,6.72]
[1717027213695,2.1966,168.44,168.4,6.72]
[1717027214107,2.1968,168.43,168.36,6.3126]
[1717027214396,2.1968,168.43,168.39,6.72]
[1717027214596,6.72,168.44,168.32,6.1865]
[1717027214793,8.9171,168.41,168.36,2.1976]
[1717027215776,2.1971,168.41,168.36,2.1976]
[1717027216879,8.9169,168.42,168.36,2.1976]
[1717027217083,2.1969,168.42,168.37,2.1975]
[1717027217280,2.1968,168.43,168.37,2.1975]
[1717027217473,13.3859,168.44,168.37,2.1975]
[1717027217689,2.1968,168.42,168.37,2.1975]
[1717027217973,2.1968,168.42,168.38,6.72]
[1717027219088,2.1966,168.45,168.32,33.0665]
[1717027219403,2.1966,168.45,168.41,6.72]
[1717027221574,2.1966,168.45,168.4,8.9171]
[1717027221781,2.1961,168.48,168.42,8.9168]
[1717027222094,8.916,168.49,168.43,8.9167]
[1717027222293,2.196,168.49,168.44,6.72]
[1717027222604,2.1958,168.5,168.45,6.72]
[1717027222903,2.1961,168.48,168.45,6.72]
[1717027223078,2.1961,168.48,168.43,2.1967]
[1717027223278,8.9161,168.48,168.42,8.9168]
[1717027224387,8.9161,168.48,168.43,2.1967]
[1717027224793,2.196,168.49,168.44,2.1965]
[1717027225206,8.9158,168.5,168.44,8.9165]
[1717027225900,2.1958,168.5,168.44,8.9165]
[1717027226112,8.9158,168.5,168.44,8.9165]
[1717027226488,12.6733,168.53,168.44,6.72]
[1717027226489,6.0868,168.53,168.44,6.72]
[1717027226688,6.72,168.51,168.45,6.72]
[1717027226886,8.9158,168.51,168.45,8.9164]
[1717027227196,6.0868,168.53,168.44,2.1965]
[1717027227503,8.9157,168.51,168.45,8.9164]
[1717027227897,2.1957,168.51,168.45,2.1964]
[1717027228103,2.1957,168.51,168.46,6.72]
[1717027228303,26.5895,168.51,168.38,20.2153]
[1717027228485,6.5895,168.51,168.38,15.8207]
[1717027228686,8.9159,168.5,168.44,8.9165]
[1717027229206,8.9159,168.5,168.45,2.1964]
[1717027229605,2.1959,168.5,168.45,2.1964]
[1717027229983,2.1959,168.5,168.44,8.9165]
[1717027230900,4.3907,168.54,168.42,4.3936]
[1717027231125,2.1956,168.52,168.46,8.9162]
[1717027231282,8.9156,168.52,168.46,8.9162]
[1717027231484,2.1957,168.51,168.46,8.9162]
[1717027231904,2.1957,168.51,168.48,6.72]
[1717027232106,2.1957,168.52,168.48,6.72]
[1717027232284,6.72,168.52,168.46,8.9163]
[1717027233011,2.1957,168.51,168.46,6.72]
[1717027233305,2.1957,168.51,168.45,2.1964]
[1717027233487,2.1958,168.5,168.46,6.72]
[1717027233695,2.1957,168.51,168.46,6.72]
[1717027234215,20.0,168.54,168.44,2.1965]
[1717027234216,2.1958,168.5,168.44,2.1965]
[1717027234414,2.1958,168.5,168.44,8.9165]
[1717027234718,2.1959,168.49,168.43,2.1967]
[1717027235093,8.9158,168.5,168.44,8.9166]
[1717027235418,2.196,168.49,168.43,2.1967]
[1717027235601,6.72,168.48,168.43,8.9167]
[1717027236501,6.72,168.48,168.44,2.1966]
[1717027236699,6.72,168.49,168.44,2.1966]
[1717027239622,6.72,168.49,168.45,2.1964]
[1717027240799,6.72,168.49,168.43,6.72]
[1717027240800,15.8971,168.48,168.43,6.72]
[1717027241003,6.72,168.46,168.41,2.1969]
[1717027241311,2.1961,168.48,168.42,2.1968]
[1717027241498,6.72,168.48,168.42,8.9168]
[1717027241895,8.9162,168.48,168.42,8.9168]
[1717027242118,2.1962,168.47,168.42,8.9168]
[1717027243124,12.7265,168.51,168.44,2.1966]
[1717027243125,6.1392,168.51,168.44,2.1966]
[1717027243300,8.916,168.49,168.44,2.1966]
[1717027244625,8.916,168.49,168.43,8.9166]
[1717027246728,8.916,168.49,168.44,2.1966]
[1717027248097,8.916,168.49,168.43,8.9167]
[1717027248297,8.9161,168.48,168.43,2.1967]
[1717027248520,6.72,168.48,168.43,2.1967]
[1717027249408,8.9161,168.48,168.43,2.1967]
[1717027249614,2.1959,168.49,168.44,2.1966]
[1717027249823,6.72,168.48,168.43,2.1967]
[1717027250024,6.72,168.48,168.44,2.1966]
[1717027253211,8.9161,168.48,168.43,2.1967]
[1717027253728,2.196,168.49,168.44,2.1966]
[1717027253930,8.916,168.49,168.44,2.1966]
[1717027254231,8.9161,168.48,168.43,2.1967]
[1717027255231,2.196,168.49,168.43,8.9167]
[1717027255410,8.916,168.49,168.43,8.9167]
[1717027256138,2.196,168.49,168.44,2.1965]
[1717027256314,8.916,168.49,168.44,2.1965]
[1717027256819,6.72,168.48,168.44,2.1965]
[1717027257339,2.196,168.49,168.42,6.72]
[1717027257511,2.196,168.49,168.44,2.1965]
[1717027257512,8.916,168.49,168.44,2.1965]
[1717027257910,13.1741,168.52,168.4,17.6237]
[1717027257911,8.9161,168.48,168.43,2.1966]
[1717027258937,6.72,168.47,168.43,2.1966]
[1717027259147,6.72,168.47,168.41,6.72]
[1717027259148,6.72,168.46,168.41,2.1969]
[1717027259450,6.72,168.45,168.41,2.1969]
[1717027260323,8.9163,168.46,168.41,2.1969]
[1717027260832,8.9162,168.47,168.41,8.9169]
[1717027261015,2.1963,168.46,168.41,8.9169]
[1717027261216,2.1965,168.45,168.4,2.1971]
[1717027261516,2.1965,168.45,168.4,8.9171]
[1717027261917,8.9164,168.46,168.41,2.197]
[1717027262117,6.72,168.46,168.41,2.197]
[1717027262533,6.72,168.46,168.42,2.1968]
[1717027262756,2.1962,168.47,168.42,2.1968]
[1717027263251,8.9162,168.47,168.42,2.1968]
[1717027263752,10.59800905,168.52,168.44,2.1965]
[1717027263952,2.1959,168.49,168.44,8.9165]
[1717027264137,2.1961,168.48,168.43,2.1967]
[1717027264359,2.1961,168.48,168.43,8.9167]
[1717027264871,8.9161,168.48,168.43,2.1967]
[1717027265371,6.72,168.48,168.44,2.1965]
[1717027265540,8.916,168.49,168.44,2.1965]
[1717027270570,8.916,168.49,168.44,8.3762]
[1717027270944,2.196,168.49,168.44,15.0962]
[1717027272466,8.7888,168.53,168.45,8.9164]
[1717027272653,2.1958,168.51,168.45,8.9164]
[1717027272843,8.9158,168.51,168.45,8.9164]
[1717027273042,2.1958,168.5,168.45,8.9164]
[1717027273358,8.7888,168.53,168.39,15.9679]
[1717027273561,6.72,168.47,168.41,8.9169]
[1717027273773,2.1963,168.47,168.41,8.9169]
[1717027273939,2.1963,168.46,168.41,8.9169]
[1717027274364,2.1963,168.46,168.42,6.72]
[1717027274562,2.1962,168.47,168.42,8.9168]
[1717027274859,2.1962,168.47,168.43,6.72]
[1717027275449,2.1962,168.47,168.42,8.4848]
[1717027275648,2.1962,168.47,168.42,15.2048]
[1717027276271,2.1961,168.48,168.44,6.72]
[1717027276466,6.72,168.5,168.44,6.72]
[1717027276467,2.196,168.49,168.44,8.9166]
[1717027277145,2.196,168.49,168.45,6.5755]
[1717027277855,2.196,168.49,168.45,13.2955]
[1717027279366,2.1961,168.48,168.45,13.2955]
[1717027279741,2.1961,168.48,168.45,6.5755]
[1717027280351,2.1961,168.48,168.44,6.72]
[1717027280880,2.1962,168.47,168.43,13.1923]
[1717027281341,2.1962,168.47,168.42,2.1968]
[1717027281746,2.1962,168.47,168.42,8.645]
[1717027282270,6.72,168.48,168.42,6.4482]
[1717027282566,6.72,168.48,168.41,6.72]
[1717027282567,2.1963,168.46,168.41,8.9169]
[1717027282949,2.1966,168.44,168.39,2.1972]
[1717027283149,10.9807,168.48,168.4,2.1971]
[1717027283150,8.9165,168.45,168.4,2.1971]
[1717027284264,8.9165,168.45,168.37,15.6317]
[1717027284466,2.1968,168.43,168.39,6.72]
[1717027284651,8.9166,168.44,168.39,8.9172]
[1717027284855,2.1966,168.44,168.39,8.9172]
[1717027285764,2.1966,168.44,168.4,6.72]
[1717027286382,2.1965,168.45,168.4,8.9171]
[1717027286585,2.1965,168.45,168.41,6.72]
[1717027287362,2.1966,168.44,168.41,6.72]
[1717027289785,2.1966,168.44,168.4,6.72]
[1717027294714,2.1967,168.43,168.4,6.72]
[1717027294885,2.1966,168.44,168.4,6.72]
[1717027295568,4.3921,168.49,168.42,6.72]
[1717027295777,2.1964,168.46,168.42,6.72]
[1717027296091,2.1964,168.46,168.41,2.1969]
[1717027296092,2.1964,168.46,168.43,6.72]
[1717027296792,2.1963,168.47,168.43,6.72]
[1717027297386,2.1963,168.46,168.42,6.72]
[1717027297700,2.1963,168.46,168.41,8.9169]
[1717027299299,8.9163,168.47,168.41,8.9169]
[1717027302698,2.1963,168.47,168.42,2.1968]
[1717027303206,2.1964,168.46,168.37,28.8165]
[1717027303397,2.1964,168.46,168.41,2.197]
[1717027303791,8.9164,168.46,168.41,2.197]
[1717027304387,2.1964,168.46,168.41,2.197]
[1717027308008,2.1964,168.46,168.4,8.917]
[1717027308515,2.1964,168.46,168.4,6.72]
[1717027308700,2.1964,168.46,168.41,2.197]
[1717027313213,2.1963,168.47,168.41,8.917]
[1717027313393,8.9162,168.48,168.42,6.72]
[1717027313591,6.72,168.47,168.41,6.72]
[1717027313791,8.9162,168.47,168.42,2.1968]
[1717027313990,2.1962,168.47,168.42,2.1968]
[1717027314406,2.1962,168.47,168.41,8.9169]
[1717027314702,2.1962,168.47,168.42,6.72]
[1717027315305,6.72,168.5,168.4,4.3942]
[1717027315508,4.3912,168.52,168.45,6.72]
[1717027315509,2.196,168.49,168.45,6.72]
[1717027316406,2.196,168.49,168.43,2.1966]
[1717027316706,2.196,168.49,168.44,2.1966]
[1717027317090,2.196,168.49,168.43,2.1967]
[1717027317496,2.1961,168.48,168.43,2.1967]
[1717027317810,2.1961,168.48,168.43,8.9167]
[1717027318611,2.196,168.49,168.43,8.9167]
[1717027318809,8.916,168.49,168.43,8.9167]
[1717027320802,2.1961,168.48,168.43,8.9167]
[1717027321504,8.9161,168.48,168.43,2.1967]
[1717027321804,8.9162,168.47,168.42,2.1968]
[1717027321997,6.72,168.46,168.42,2.1968]
[1717027322191,8.9163,168.46,168.41,2.1969]
[1717027322403,8.9163,168.46,168.4,8.917]
[1717027322590,8.9163,168.46,168.41,6.72]
[1717027322792,8.9163,168.46,168.4,2.197]
[1717027323404,8.9163,168.46,168.4,2.1971]
[1717027323713,8.9163,168.46,168.4,8.9171]
[1717027325608,8.9163,168.46,168.4,2.1971]
[1717027326002,8.9163,168.46,168.4,8.9171]
[1717027326890,6.72,168.46,168.41,2.197]
[1717027327415,6.72,168.46,168.41,8.917]
[1717027327611,8.4702,168.47,168.42,2.1968]
[1717027327917,8.4702,168.47,168.42,6.72]
[1717027328115,2.1963,168.46,168.41,2.1969]
[1717027328616,2.1963,168.46,168.41,8.9169]
[1717027328912,15.1902,168.47,168.41,8.9169]
[1717027331194,8.4702,168.47,168.41,8.9169]
[1717027331397,8.4702,168.47,168.42,6.72]
[1717027331817,15.1902,168.47,168.41,8.9169]
[1717027332120,2.1963,168.46,168.41,2.1969]
[1717027332324,2.1963,168.46,168.41,8.9169]
[1717027332496,8.4702,168.47,168.42,6.72]
[1717027332702,15.1902,168.47,168.41,8.9169]
[1717027333099,15.1902,168.47,168.41,2.1969]
[1717027333100,2.1963,168.46,168.41,2.1969]
[1717027333302,12.994,168.47,168.41,2.1969]
[1717027333303,15.1902,168.47,168.41,2.1969]
[1717027333507,2.1963,168.46,168.4,2.1971]
[1717027333735,8.4702,168.47,168.41,2.197]
[1717027334019,8.4702,168.47,168.41,8.917]
[1717027334197,15.1902,168.47,168.41,8.917]
[1717027334919,15.1902,168.47,168.41,2.197]
[1717027335127,2.1966,168.44,168.38,2.1973]
[1717027335805,2.1966,168.44,168.39,6.72]
[1717027336007,2.1966,168.44,168.39,8.9172]
[1717027336204,8.9165,168.45,168.39,8.9172]
[1717027336424,2.1964,168.46,168.4,2.1971]
[1717027336626,6.72,168.45,168.4,2.1971]
[1717027336827,2.1965,168.45,168.4,6.72]
[1717027339031,8.294,168.45,168.4,6.72]
[1717027339231,16.623,168.43,168.4,6.72]
[1717027339410,6.72,168.41,168.31,4.3965]
[1717027339607,12.8175,168.39,168.34,8.9178]
[1717027340008,12.8175,168.39,168.35,2.1977]
[1717027340345,6.0975,168.39,168.35,2.1977]
[1717027340703,6.0975,168.39,168.35,8.9177]
[1717027341713,6.0975,168.39,168.35,2.1977]
[1717027342246,6.0975,168.39,168.35,8.9177]
[1717027343814,2.197,168.41,168.36,6.72]
[1717027344236,2.197,168.41,168.35,2.1977]
[1717027344530,2.197,168.41,168.37,6.72]
[1717027345820,2.1971,168.4,168.35,2.1977]
[1717027346018,2.1971,168.4,168.36,6.72]
[1717027346622,13.1791,168.45,168.36,8.9176]
[1717027346840,2.1969,168.42,168.38,6.72]
[1717027347716,2.1967,168.43,168.38,8.9174]
[1717027347916,2.1966,168.44,168.38,8.9174]
[1717027348113,2.1966,168.44,168.35,4.3954]
[1717027348114,6.5827,168.47,168.41,6.72]
[1717027348322,95.76935323,168.55,168.42,21.9322]
[1717027348535,102.48935323,168.55,168.49,6.72]
[1717027348756,2.1956,168.52,168.49,6.72]
[1717027349119,2.1954,168.53,168.49,6.72]
[1717027349433,2.1954,168.53,168.5,6.72]
[1717027349829,102.48935323,168.55,168.26,13.82751971]
[1717027349830,6.5574,168.64,168.52,6.72]
[1717027350028,2.1945,168.61,168.57,6.72]
[1717027350228,28.6522,168.6,168.54,6.72]
[1717027350461,21.9322,168.6,168.54,8.9152]
[1717027350755,21.9322,168.6,168.55,6.72]
[1717027351626,6.72,168.61,168.55,6.72]
[1717027351826,2.1944,168.61,168.55,6.72]
[1717027352035,8.9144,168.61,168.55,6.72]
[1717027353766,8.9144,168.61,168.54,2.1953]
[1717027353951,2.1945,168.6,168.51,6.4475]
[1717027354267,2.1945,168.6,168.53,6.72]
[1717027354668,2.1944,168.61,168.53,8.9154]
[1717027354967,2.1944,168.61,168.54,6.72]
[1717027355636,2.1945,168.6,168.54,6.72]
[1717027355967,2.1947,168.59,168.51,8.9156]
[1717027356474,8.9148,168.58,168.51,2.1956]
[1717027356644,8.9148,168.58,168.52,6.72]
[1717027357050,6.72,168.58,168.52,6.72]
[1717027357256,2.1947,168.59,168.52,8.9155]
[1717027357568,2.1947,168.59,168.54,6.72]
[1717027357754,2.1945,168.6,168.56,6.72]
[1717027358232,2.1945,168.6,168.55,6.72]
[1717027358433,2.1946,168.59,168.55,6.72]
[1717027358829,2.1944,168.61,168.55,6.72]
[1717027359331,2.1944,168.61,168.56,6.72]
[1717027359742,2.1944,168.61,168.55,2.1951]
[1717027359964,2.1944,168.61,168.57,6.72]
[1717027360476,8.9143,168.62,168.56,6.72]
[1717027360785,2.1943,168.62,168.56,6.72]
[1717027361068,2.194,168.64,168.59,6.72]
[1717027363174,8.9139,168.65,168.59,6.72]
[1717027363384,8.9139,168.65,168.58,2.1947]
[1717027363679,8.9139,168.65,168.59,6.72]
[1717027365383,8.914,168.64,168.57,2.1948]
[1717027365557,8.914,168.64,168.58,6.72]
[1717027365757,6.72,168.63,168.58,6.72]
[1717027366074,6.72,168.63,168.58,2.1947]
[1717027366851,8.914,168.64,168.58,6.72]
[1717027367283,2.1941,168.63,168.58,6.72]
[1717027367650,2.1941,168.63,168.57,2.1948]
[1717027367651,2.194,168.64,168.59,6.72]
[1717027368056,2.194,168.64,168.57,2.1948]
[1717027368262,2.1939,168.65,168.59,6.72]
[1717027368481,2.1939,168.65,168.59,8.9146]
[1717027368677,2.1939,168.65,168.6,6.72]
[1717027369481,4.3874,168.67,168.6,6.72]
[1717027369482,8.9137,168.67,168.6,8.9144]
[1717027369663,8.9137,168.67,168.61,6.72]
[1717027369863,2.1935,168.68,168.61,8.9143]
[1717027370482,8.9136,168.67,168.61,8.9143]
[1717027371692,6.72,168.67,168.61,8.9143]
[1717027371862,8.9136,168.67,168.61,2.1943]
[1717027372063,2.1936,168.67,168.58,4.3895]
[1717027372264,8.9136,168.67,168.58,4.3895]
[1717027372668,2.1935,168.68,168.61,2.1943]
[1717027372863,6.72,168.67,168.59,4.3893]
[1717027373058,2.1934,168.69,168.62,2.1941]
[1717027373361,8.9135,168.68,168.61,2.1943]
[1717027373560,6.72,168.67,168.61,2.1943]
[1717027374271,39.83986924,168.72,168.56,33.0252]
[1717027374272,6.38086924,168.72,168.66,6.72]
[1717027374475,6.38086924,168.72,168.64,6.2155]
[1717027374476,0.1813357,168.72,168.68,6.72]
[1717027374781,0.1813357,168.72,168.69,6.72]
[1717027375088,0.1813357,168.72,168.67,2.1935]
[1717027375089,0.1813357,168.72,168.68,6.72]
[1717027375276,0.1813357,168.72,168.7,6.72]
[1717027375592,0.1813357,168.72,168.68,6.4456]
[1717027375593,0.1813357,168.72,168.71,2.1931]
[1717027376195,0.1813357,168.72,168.71,6.72]
[1717027376573,0.1813357,168.72,168.7,2.1932]
[1717027376785,0.1813357,168.72,168.71,6.72]
[1717027379478,0.1813357,168.72,168.71,8.9131]
[1717027379683,0.1813357,168.72,168.71,13.1586]
[1717027379977,0.1813357,168.72,168.71,16.67011463]
[1717027380474,0.1813357,168.72,168.71,8.4377]
[1717027380674,0.1813357,168.72,168.71,15.1577]
[1717027381305,0.1813357,168.72,168.71,38.63611428]
[1717027381496,3.57e-05,168.72,168.71,49.60161428]
[1717027381697,117.93536483,168.9,168.71,49.60161428]
[1717027381698,4.3818,168.88,168.78,2.192]
[1717027381902,2.1914,168.84,168.79,6.72]
[1717027382273,2.1915,168.83,168.77,4.21845317]
[1717027382493,10.9547,168.88,168.68,259.448]
[1717027382494,26.88,168.88,168.71,34.6431]
[1717027382705,6.72,168.8,168.71,25.871]
[1717027382877,8.912,168.8,168.73,8.9127]
[1717027383082,8.912,168.8,168.71,25.871]
[1717027383083,6.72,168.79,168.75,2.1925]
[1717027383283,2.1919,168.81,168.75,2.1925]
[1717027383284,6.72,168.8,168.75,2.1925]
[1717027383899,2.1919,168.81,168.76,6.72]
[1717027384098,2.1919,168.81,168.75,8.9125]
[1717027384281,2.1919,168.81,168.76,6.72]
[1717027384793,6.72,168.85,168.76,6.2178]
[1717027384995,6.72,168.85,168.78,6.72]
[1717027385674,6.72,168.85,168.78,2.1921]
[1717027385910,4.3818,168.88,168.79,6.72]
[1717027386207,8.9113,168.85,168.79,6.72]
[1717027387288,8.9113,168.85,168.79,9.08887082]
[1717027388107,8.9113,168.85,168.79,11.28087082]
[1717027388604,2.191,168.87,168.8,2.36923076]
[1717027388783,2.191,168.87,168.82,6.72]
[1717027389688,2.191,168.87,168.83,6.72]
[1717027389889,2.191,168.87,168.82,6.72]
[1717027392202,8.911,168.87,168.81,8.9118]
[1717027392389,6.72,168.84,168.79,2.192]
[1717027392587,6.72,168.82,168.78,2.1921]
[1717027392903,6.72,168.82,168.77,8.9122]
[1717027393105,8.9115,168.83,168.77,8.9122]
[1717027393302,6.72,168.83,168.78,2.1921]
[1717027393902,8.9114,168.84,168.79,2.192]
[1717027394595,13.1465,168.87,168.79,8.912]
[1717027394596,2.1913,168.85,168.79,8.912]
[1717027394905,8.9113,168.85,168.79,8.912]
[1717027395991,2.1914,168.84,168.79,6.72]
[1717027396315,2.1914,168.84,168.78,2.1921]
[1717027396491,2.1915,168.83,168.77,2.1922]
[1717027396693,2.1915,168.83,168.78,6.72]
[1717027397086,2.1915,168.83,168.77,2.1922]
[1717027397291,2.1918,168.81,168.76,2.1924]
[1717027397497,2.1919,168.8,168.72,8.7714]
[1717027397705,6.72,168.81,168.75,6.72]
[1717027398004,19.6493,168.85,168.78,6.72]
[1717027398005,2.1917,168.82,168.78,6.72]
[1717027398215,2.1918,168.81,168.76,2.1924]
[1717027398404,2.1918,168.81,168.76,8.794]
[1717027398607,2.1917,168.82,168.76,8.794]
[1717027402201,2.1918,168.81,168.76,6.6016]
[1717027402694,2.1918,168.81,168.75,2.1925]
[1717027403424,2.1918,168.81,168.77,6.72]
[1717027403795,6.19365513,168.87,168.78,6.72]
[1717027403796,4.3824,168.86,168.78,6.72]
[1717027403994,2.1913,168.85,168.8,6.72]
[1717027404206,7.2887639,168.89,168.81,6.72]
[1717027404396,2.1911,168.86,168.82,6.72]
[1717027404601,2.1911,168.86,168.8,8.4344]
[1717027404602,0.7874639,168.89,168.83,6.72]
[1717027404805,2.9782639,168.89,168.83,8.9114]
[1717027405005,2.9782639,168.89,168.8,17.202]
[1717027405006,0.7874639,168.89,168.84,6.72]
[1717027405210,0.7874639,168.89,168.85,6.72]
[1717027405622,0.7874639,168.89,168.85,8.9112]
[1717027405994,0.7874639,168.89,168.85,2.1912]
[1717027406193,0.7874639,168.89,168.85,8.9112]
[1717027406611,0.7874639,168.89,168.85,2.1912]
[1717027406814,0.7874639,168.89,168.84,2.1913]
[1717027407324,0.7874639,168.89,168.85,6.72]
[1717027407827,0.7874639,168.89,168.87,6.72]
[1717027408617,0.7874639,168.89,168.87,8.08534363]
[1717027409522,0.7874639,168.89,168.88,48.6816]
[1717027410094,0.7874639,168.89,168.88,42.1089]
[1717027412323,20.0944,169.02,168.88,42.1089]
[1717027412324,15.41500985,169.02,168.88,26.478]
[1717027412523,20.0,169.01,168.88,26.478]
[1717027413024,4.3787,169.0,168.88,6.1304]
[1717027413212,2.1898,168.97,168.9,2.1905]
[1717027413414,2.1899,168.96,168.89,2.1907]
[1717027413613,2.19,168.95,168.89,2.1907]
[1717027414925,24.3791,168.99,168.84,22.0272]
[1717027414926,10.9488,168.97,168.84,26.0361]
[1717027415133,2.1903,168.93,168.86,2.191]
[1717027415428,24.3798,168.96,168.86,2.191]
[1717027415601,2.1903,168.93,168.86,2.191]
[1717027415806,2.1905,168.91,168.85,2.1912]
[1717027416106,20.0,168.94,168.81,16.6481]
[1717027416313,8.7612,168.93,168.81,16.6481]
[1717027416527,2.191,168.87,168.81,18.8398]
[1717027416708,2.191,168.87,168.81,2.1917]
[1717027416912,2.1909,168.88,168.82,2.1916]
[1717027419717,2.1911,168.86,168.8,2.1918]
[1717027419916,2.191,168.87,168.79,6.555]
[1717027420126,2.191,168.87,168.8,2.1918]
[1717027420436,2.1912,168.86,168.8,2.1918]
[1717027421415,2.1912,168.86,168.79,2.192]
[1717027421810,2.1912,168.85,168.79,2.192]
[1717027422439,20.0,168.89,168.75,6.1516]
[1717027422440,2.1914,168.84,168.78,2.1921]
[1717027423214,2.1914,168.84,168.77,2.1922]
[1717027423411,2.1915,168.83,168.77,2.1922]
[1717027423943,2.1914,168.84,168.77,2.1922]
[1717027424126,2.1915,168.83,168.77,2.1922]
[1717027424635,2.1914,168.84,168.77,2.1922]
[1717027424934,2.1914,168.84,168.78,2.1921]
[1717027425650,2.1913,168.85,168.79,2.192]
[1717027425814,2.1914,168.84,168.78,2.1921]
[1717027428822,2.1913,168.85,168.79,2.192]
[1717027429028,2.1911,168.86,168.79,2.1919]
[1717027429628,2.1911,168.86,168.8,2.1919]
[1717027430626,2.1912,168.85,168.79,2.192]
[1717027431440,2.1912,168.86,168.8,2.1919]
[1717027434723,2.1913,168.85,168.79,2.192]
[1717027435420,2.1914,168.84,168.78,2.1921]
[1717027435621,2.1913,168.85,168.79,2.192]
[1717027436326,6.75,168.84,168.79,2.192]
[1717027438633,8.9413,168.85,168.79,8.942]
[1717027440434,8.9413,168.85,168.79,2.192]